bitfinex/quotes_ETHUSD_20211001
["timestamp","ask_amount","ask_price","bid_price","bid_amount"]
[1633066473206,0.003,3010.5,3009.9,8.48096487]
[1633066473407,0.003,3010.5,3009.9,28.00096487]
[1633066473807,0.003,3010.5,3009.9,32.99696487]
[1633066474007,0.003,3010.5,3009.9,34.61734044]
[1633066474210,0.003,3010.5,3009.9,35.54831552]
[1633066475083,0.003,3010.5,3009.9,34.61734044]
[1633066476812,0.003,3010.5,3009.9,32.99696487]
[1633066477413,0.003,3010.5,3009.9,34.60848498]
[1633066477612,0.003,3010.5,3009.9,32.99696487]
[1633066477813,0.003,3010.5,3009.9,34.60834752]
[1633066478614,0.003,3010.5,3009.9,32.99696487]
[1633066481615,0.003,3010.5,3010.1,8.31762]
[1633066481817,0.003,3010.5,3010.2,19.72]
[1633066482018,0.003,3010.5,3010.3,2.21117207]
[1633066482218,1.46649942,3010.7,3010.4,7.59594005]
[1633066482417,1.46649942,3010.7,3010.6,5.019112]
[1633066482618,1.46649942,3010.7,3010.6,5.219112]
[1633066482816,1.46649942,3010.7,3010.6,32.739112]
[1633066483018,1.46649942,3010.7,3010.6,35.48630586]
[1633066483217,1.46649942,3010.7,3010.6,37.49345444]
[1633066487225,0.01417492,3010.9,3010.6,38.11806327]
[1633066487421,0.01417492,3010.9,3010.8,4.996]
[1633066487622,0.01417492,3010.9,3010.8,10.82960449]
[1633066487825,0.01417492,3010.9,3010.8,19.82960449]
[1633066488020,0.01417492,3010.9,3010.8,39.34960449]
[1633066488619,0.01417492,3010.9,3010.8,40.64360449]
[1633066491426,0.01417492,3010.9,3010.8,43.39100449]
[1633066491427,7.492e-05,3010.9,3010.8,43.39100449]
[1633066491624,0.003,3011.0,3010.8,43.39100449]
[1633066491926,0.006,3011.6,3010.9,9.79112969]
[1633066492125,0.006,3011.6,3011.5,4.996]
[1633066492328,0.006,3011.6,3011.5,7.98650615]
[1633066492527,0.006,3012.6,3012.0,2.14559261]
[1633066492726,0.006,3012.6,3012.0,7.35836861]
[1633066492925,0.006,3012.6,3012.0,15.35836861]
[1633066493125,0.006,3012.6,3012.0,40.85759861]
[1633066493527,0.006,3012.6,3012.0,41.5654973]
[1633066493926,0.006,3012.6,3012.0,42.16971509]
[1633066495128,0.006,3012.6,3012.1,5.996]
[1633066495328,0.006,3012.6,3012.1,25.716]
[1633066495927,0.006,3012.6,3012.1,26.83512283]
[1633066496327,0.006,3012.6,3012.2,9.97487]
[1633066496527,0.006,3012.6,3012.2,39.98887]
[1633066496728,0.006,3012.8,3012.3,5.007886]
[1633066496928,0.006,3012.8,3012.7,4.996]
[1633066497127,0.006,3012.8,3012.7,5.196]
[1633066497327,0.006,3012.8,3012.7,25.716]
[1633066497529,0.006,3012.8,3012.7,26.5392914]
[1633066497927,0.006,3012.8,3012.7,25.716]
[1633066498128,0.006,3012.8,3012.7,6.196]
[1633066498327,0.006,3012.8,3012.7,11.17427]
[1633066498929,0.006,3012.8,3012.7,11.9912619]
[1633066499932,0.006,3012.8,3012.7,11.17427]
[1633066500928,0.006,3012.8,3012.7,12.02522312]
[1633066501130,0.006,3012.8,3012.7,32.83922312]
[1633066501328,0.006,3012.8,3012.7,41.35101758]
[1633066501526,0.006,3012.8,3012.7,40.83922312]
[1633066501727,0.006,3012.8,3012.7,41.38713322]
[1633066501927,0.006,3012.8,3012.7,45.27770906]
[1633066502128,0.015,3013.0,3012.7,45.27770906]
[1633066502327,0.015,3013.0,3012.8,4.996]
[1633066502528,0.015,3013.0,3012.8,6.196]
[1633066502928,0.015,3013.0,3012.8,24.716]
[1633066503927,0.015,3013.0,3012.8,31.35346]
[1633066504729,0.015,3013.0,3012.8,12.83346]
[1633066505533,0.015,3013.0,3012.8,32.35346]
[1633066505731,2.486,3013.8,3013.6,0.99116173]
[1633066505931,2.486,3013.8,3013.6,33.71660973]
[1633066506132,0.006,3013.8,3013.6,33.71660973]
[1633066506331,0.006,3013.8,3013.6,34.71660973]
[1633066506733,0.006,3013.8,3013.6,35.43298268]
[1633066506930,0.006,3013.8,3013.6,20.88968268]
[1633066507131,0.006,3013.8,3013.6,20.88023468]
[1633066507331,0.006,3013.8,3013.6,20.16386173]
[1633066507530,0.006,3013.8,3013.6,12.16386173]
[1633066507935,0.006,3013.8,3013.6,20.16386173]
[1633066508131,0.0072466,3013.7,3013.6,20.16386173]
[1633066508329,0.0072466,3013.7,3013.6,31.68386173]
[1633066508731,0.0072466,3013.7,3013.6,32.68757771]
[1633066508933,0.006,3013.8,3013.6,40.68757771]
[1633066509136,0.006,3013.8,3013.7,5.996]
[1633066509332,0.006,3013.8,3013.7,6.196]
[1633066509532,1.3,3013.8,3013.7,6.196]
[1633066509735,1.304288,3013.8,3013.7,5.196]
[1633066509932,0.010288,3013.8,3013.7,5.196]
[1633066510133,0.006,3014.4,3014.3,1.22654859]
[1633066510333,0.006,3014.4,3014.3,6.44751589]
[1633066510534,0.006,3014.4,3014.3,25.96751589]
[1633066510932,0.006,3014.4,3014.3,35.81713371]
[1633066511133,0.006,3014.4,3014.3,35.85536435]
[1633066511332,0.006,3014.7,3014.3,41.44478046]
[1633066511534,0.006,3014.7,3014.4,5.996]
[1633066511732,0.006,3014.7,3014.4,7.3714]
[1633066511933,0.006,3014.7,3014.4,26.8914]
[1633066514097,0.006,3015.1,3014.8,2.14764405]
[1633066514234,2.486,3016.1,3015.4,0.015]
[1633066514434,2.486,3016.1,3015.7,4.996]
[1633066514635,2.486,3016.1,3015.9,4.996]
[1633066514837,2.486,3016.1,3015.9,5.196]
[1633066514838,0.013145,3016.0,3015.9,5.196]
[1633066515038,0.74083181,3016.0,3015.9,5.196]
[1633066515635,0.013145,3016.0,3015.9,5.196]
[1633066515839,0.013145,3016.0,3015.9,6.207548]
[1633066515840,0.009,3016.0,3015.9,6.207548]
[1633066516047,0.009,3016.0,3015.9,6.196]
[1633066516837,0.009,3016.0,3015.9,5.196]
[1633066517537,0.009,3016.0,3015.9,6.196]
[1633066518535,0.01056524,3016.0,3015.9,5.196]
[1633066519137,0.79675525,3016.0,3015.9,5.196]
[1633066519339,2.09495025,3016.0,3015.9,5.196]
[1633066519540,2.09495025,3016.0,3015.9,0.2]
[1633066519738,0.80095025,3016.0,3015.9,0.2]
[1633066520338,2.04495025,3016.0,3015.5,0.2]
[1633066520540,0.75095025,3016.0,3015.5,0.203]
[1633066520739,0.004156,3015.6,3015.5,0.203]
[1633066520940,0.65091125,3016.0,3015.5,0.203]
[1633066521342,1.04365422,3015.6,3015.5,0.203]
[1633066521538,0.65091125,3016.0,3015.5,0.203]
[1633066521939,2.22092357,3015.9,3015.5,0.203]
[1633066522339,0.004107,3015.6,3015.5,0.203]
[1633066522540,2.2615758,3015.6,3015.5,0.203]
[1633066522740,2.2615758,3015.6,3015.4,0.015]
[1633066522741,0.004107,3015.6,3015.4,0.015]
[1633066522942,3.5164777,3014.8,3014.5,0.003]
[1633066523142,2.56341419,3014.7,3014.5,0.003]
[1633066523354,2.16795006,3014.6,3014.5,0.003]
[1633066523544,5.76700557,3014.6,3014.3,0.003]
[1633066523741,7.79592757,3014.6,3014.3,0.003]
[1633066523942,7.79592757,3014.6,3014.1,0.003]
[1633066524144,7.79592757,3014.6,3013.6,0.2]
[1633066524340,7.79592757,3014.6,3013.6,3.51815]
[1633066524541,2.17226206,3014.6,3013.9,4.08336131]
[1633066524744,2.17226206,3014.6,3013.9,3.3181451]
[1633066524745,1.294,3014.3,3013.9,3.3181451]
[1633066524940,2.17226206,3014.6,3014.0,0.006]
[1633066525542,2.17226206,3014.6,3013.7,0.006]
[1633066525742,0.80946079,3014.1,3013.7,0.006]
[1633066525941,1.42667711,3014.5,3013.7,0.006]
[1633066526149,1.20560382,3014.6,3013.7,0.006]
[1633066526543,6.18347382,3014.6,3013.7,0.006]
[1633066526743,4.982182,3014.6,3013.7,0.006]
[1633066526942,1.294,3014.2,3013.7,0.006]
[1633066527148,0.85191295,3014.3,3013.7,0.006]
[1633066527747,0.004449,3013.8,3013.7,0.006]
[1633066527943,2.846349,3013.8,3013.5,0.009]
[1633066528144,2.846349,3013.8,3012.9,0.99979145]
[1633066528145,0.87428473,3013.6,3012.9,0.99979145]
[1633066528543,0.87428473,3013.6,3013.0,0.012]
[1633066528747,3.31988,3013.4,3013.0,0.012]
[1633066528943,3.31988,3013.4,3012.8,0.012]
[1633066528944,4.06868,3013.4,3012.8,0.012]
[1633066529407,1.12525232,3013.0,3012.8,0.012]
[1633066529804,3.31988,3013.4,3012.8,0.012]
[1633066530207,2.02288064,3013.1,3012.8,0.012]
[1633066530408,0.5726,3013.2,3012.8,0.012]
[1633066530605,4.87612,3013.9,3012.8,0.012]
[1633066530606,0.9507,3014.3,3014.0,1.02348407]
[1633066530806,42.66855831,3015.5,3014.2,1.79412419]
[1633066530807,40.206,3015.5,3014.2,1.79412419]
[1633066531007,2.82674353,3015.2,3014.3,0.2]
[1633066531207,40.206,3015.5,3014.3,0.203]
[1633066531208,1.14415247,3015.0,3014.3,0.203]
[1633066531411,1.14415247,3015.0,3014.4,0.78003842]
[1633066531606,1.14415247,3015.0,3014.4,0.003]
[1633066531808,1.14415247,3015.0,3014.5,0.003]
[1633066532012,1.294,3014.7,3014.5,0.003]
[1633066532208,1.14415247,3015.0,3014.5,0.003]
[1633066532409,0.90553309,3014.5,3014.4,0.003]
[1633066532609,0.9397372,3014.6,3014.4,0.203]
[1633066532809,2.14764405,3014.8,3014.4,0.203]
[1633066533010,2.14764405,3014.8,3014.5,0.003]
[1633066533210,1.294,3014.7,3014.5,0.003]
[1633066533409,2.14764405,3014.8,3014.5,0.003]
[1633066533610,0.004141,3014.6,3014.5,0.003]
[1633066533809,0.89677342,3014.6,3014.5,0.003]
[1633066534011,0.89677342,3014.6,3014.3,0.003]
[1633066534012,1.89677342,3014.6,3014.3,0.003]
[1633066534208,1.294,3014.5,3014.3,0.003]
[1633066534408,2.05919711,3014.5,3014.3,0.003]
[1633066534609,1.05919711,3014.5,3014.3,0.003]
[1633066534807,1.05919711,3014.5,3014.2,1.74268689]
[1633066534808,7.03756711,3014.5,3014.2,1.74268689]
[1633066535009,7.03756711,3014.5,3013.9,0.003]
[1633066535010,8.21494066,3014.4,3013.9,0.003]
[1633066535210,0.005668,3014.0,3013.9,0.003]
[1633066535613,0.91301264,3014.0,3013.9,0.003]
[1633066535810,5.89247264,3014.0,3013.9,0.003]
[1633066536014,6.85902886,3014.0,3013.9,0.003]
[1633066536212,8.15302886,3014.0,3013.9,0.003]
[1633066537810,8.15302886,3014.0,3013.9,0.00089211]
[1633066538210,6.63798,3014.6,3013.9,0.00089211]
[1633066538211,2.14764405,3014.8,3014.0,2.98740363]
[1633066538411,2.14764405,3014.8,3014.7,0.04448677]
[1633066538613,2.14764405,3014.8,3014.7,1.54888677]
[1633066539014,2.14764405,3014.8,3014.7,7.54488677]
[1633066539214,2.14764405,3014.8,3014.7,16.64844138]
[1633066539412,2.14866205,3014.8,3014.7,8.96687149]
[1633066539611,2.14866205,3014.8,3014.7,36.51106741]
[1633066539812,2.14866205,3014.8,3014.7,36.4568253]
[1633066540011,0.003,3015.0,3014.8,0.00093795]
[1633066540212,0.003,3015.0,3014.9,6.49]
[1633066540412,0.003,3015.0,3014.9,10.17038]
[1633066540611,0.003,3015.0,3014.9,29.69038]
[1633066540811,0.003,3015.0,3014.9,38.69038]
[1633066541412,0.003,3015.0,3014.9,39.98438]
[1633066541813,0.003,3015.0,3014.9,38.69038]
[1633066542812,0.003,3015.0,3014.9,5.196]
[1633066544226,0.003,3015.0,3014.9,6.196]
[1633066544624,0.003,3015.0,3014.9,25.716]
[1633066545226,0.003,3015.0,3014.9,6.196]
[1633066546627,0.003,3015.0,3014.9,25.716]
[1633066547028,0.003,3015.0,3014.9,6.196]
[1633066547731,0.006,3016.1,3015.7,0.203]
[1633066547928,0.006,3016.1,3015.9,4.996]
[1633066548131,0.006,3016.1,3015.9,5.196]
[1633066548327,0.006,3016.1,3015.9,6.196]
[1633066549932,0.00413821,3016.0,3015.9,6.196]
[1633066550334,0.00413821,3016.0,3015.9,11.16974]
[1633066551333,0.00413821,3016.0,3015.9,6.196]
[1633066551937,0.00413821,3016.0,3015.9,6.096]
[1633066553535,0.00413821,3016.0,3015.9,11.06979]
[1633066554536,0.00413821,3016.0,3015.9,6.096]
[1633066555536,0.00413821,3016.0,3015.9,5.096]
[1633066555936,0.00413821,3016.0,3015.9,6.096]
[1633066556836,0.00413821,3016.0,3015.9,5.096]
[1633066557238,0.00413821,3016.0,3015.9,6.096]
[1633066557836,0.00413821,3016.0,3015.9,5.096]
[1633066558237,0.00413821,3016.0,3015.3,16.7644996]
[1633066558238,6.26303126,3015.7,3015.3,16.7644996]
[1633066558438,6.26303126,3015.7,3015.4,0.2]
[1633066558439,0.87190762,3015.6,3015.4,0.2]
[1633066558637,0.87190762,3015.6,3015.0,0.98051209]
[1633066559238,0.87190762,3015.6,3015.0,0.003]
[1633066559640,2.38633962,3015.7,3015.0,0.003]
[1633066559837,2.38633962,3015.7,3015.1,3.3166263]
[1633066560239,2.38633962,3015.7,3015.2,0.2]
[1633066560640,0.00102473,3015.6,3015.2,0.2]
[1633066562646,1.01758655,3015.3,3015.2,0.2]
[1633066562841,0.00102473,3015.6,3015.2,0.2]
[1633066563240,0.78290562,3015.3,3015.2,0.2]
[1633066564040,0.00102473,3015.6,3015.2,0.2]
[1633066565040,2.18793443,3015.4,3015.2,0.2]
[1633066565845,0.97736957,3015.4,3015.2,0.2]
[1633066566842,0.00102473,3015.6,3015.2,0.2]
[1633066567845,0.83359484,3015.5,3015.2,0.2]
[1633066568444,0.00102473,3015.6,3015.2,0.2]
[1633066569442,0.88464399,3015.4,3015.2,0.2]
[1633066569843,1.92250243,3015.4,3015.2,0.2]
[1633066570055,0.00102473,3015.6,3015.2,0.2]
[1633066571106,0.96471046,3015.5,3015.2,0.2]
[1633066571246,0.83141652,3015.6,3015.2,0.2]
[1633066571648,0.83141652,3015.6,3015.3,4.97525]
[1633066571847,0.83141652,3015.6,3015.3,5.17525]
[1633066572246,1.17743074,3015.5,3015.3,5.17525]
[1633066572449,0.83141652,3015.6,3015.3,5.17525]
[1633066572849,0.83141652,3015.6,3015.3,8.49198]
[1633066573650,0.00102473,3015.6,3015.3,3.51673]
[1633066574113,0.00102473,3015.6,3015.4,4.97501]
[1633066574254,0.00102473,3015.6,3015.5,0.2]
[1633066580555,0.00102473,3015.6,3015.5,21.014]
[1633066580759,2.38633962,3015.7,3015.5,28.25810716]
[1633066580957,2.38633962,3015.7,3015.5,36.76890716]
[1633066581160,2.38633962,3015.7,3015.6,1.0]
[1633066581358,2.38633962,3015.7,3015.6,1.2]
[1633066581558,2.38633962,3015.7,3015.6,2.16600831]
[1633066581760,2.38633962,3015.7,3015.6,1.2]
[1633066582558,2.38633962,3015.7,3015.6,20.72]
[1633066582760,2.38633962,3015.7,3015.6,28.72]
[1633066582959,2.38633962,3015.7,3015.6,9.2]
[1633066583158,2.38633962,3015.7,3015.6,28.72]
[1633066583361,2.38633962,3015.7,3015.6,29.69020355]
[1633066583958,2.38633962,3015.7,3015.6,30.98420355]
[1633066584159,2.38633962,3015.7,3015.6,29.69020355]
[1633066584558,2.38633962,3015.7,3015.6,10.17020355]
[1633066584761,2.38633962,3015.7,3015.6,1.2]
[1633066584958,2.38633962,3015.7,3015.6,9.2]
[1633066585160,2.38633962,3015.7,3015.6,30.014]
[1633066585758,2.38633962,3015.7,3015.6,30.75082641]
[1633066586558,2.38633962,3015.7,3015.6,31.93500582]
[1633066587359,2.38633962,3015.7,3015.6,30.75082641]
[1633066588562,2.38633962,3015.7,3015.6,1.2]
[1633066589563,2.38633962,3015.7,3015.6,1.98590188]
[1633066589761,2.38633962,3015.7,3015.6,21.50590188]
[1633066590164,2.38633962,3015.7,3015.6,1.98590188]
[1633066590561,2.38633962,3015.7,3015.6,1.2]
[1633066590764,2.38633962,3015.7,3015.6,20.72]
[1633066591561,2.38633962,3015.7,3015.6,28.34051887]
[1633066592563,2.38633962,3015.7,3015.6,28.14051887]
[1633066592761,2.38633962,3015.7,3015.6,7.63113]
[1633066593563,2.38633962,3015.7,3015.6,27.15113]
[1633066593766,2.38633962,3015.7,3015.6,28.02878305]
[1633066594161,2.38633962,3015.7,3015.6,7.63113]
[1633066597367,2.38633962,3015.7,3015.6,7.83113]
[1633066597965,2.38633962,3015.7,3015.6,6.83113]
[1633066598228,2.38633962,3015.7,3015.6,0.2]
[1633066598426,2.38633962,3015.7,3015.3,6.8324683]
[1633066599028,0.88630424,3015.6,3015.3,6.8324683]
[1633066599428,1.88177067,3015.6,3015.3,6.8324683]
[1633066599625,1.88177067,3015.6,3015.4,4.97515]
[1633066599827,0.99546643,3015.6,3015.4,4.97515]
[1633066600828,2.38633962,3015.7,3015.4,4.97515]
[1633066601428,0.00091733,3015.5,3015.4,4.97515]
[1633066605030,0.00091733,3015.5,3015.3,6.8324683]
[1633066605832,0.95512885,3015.5,3015.3,6.8324683]
[1633066609234,0.00091733,3015.5,3015.3,11.8077883]
[1633066609633,0.00091733,3015.5,3015.3,6.8324683]
[1633066610234,0.00091733,3015.5,3015.3,11.8078083]
[1633066610434,0.00091733,3015.5,3015.3,6.8324683]
[1633066611240,0.00091733,3015.5,3015.4,20.52]
[1633066611435,0.00091733,3015.5,3015.4,25.69522]
[1633066611635,0.00091733,3015.5,3015.4,14.17522]
[1633066611836,0.00091733,3015.5,3015.4,15.7953598]
[1633066612037,0.97610114,3015.5,3015.4,14.17522]
[1633066612237,2.27010114,3015.5,3015.4,0.2]
[1633066612537,2.27010114,3015.5,3015.0,0.003]
[1633066612538,3.5162983,3015.3,3015.0,0.003]
[1633066612737,0.98080272,3015.2,3015.0,0.003]
[1633066612936,0.98080272,3015.2,3014.9,0.003]
[1633066613147,0.99785961,3015.1,3014.6,0.003]
[1633066613337,0.83357508,3014.8,3014.6,0.003]
[1633066613538,0.00403,3014.7,3014.6,0.003]
[1633066613938,2.18615398,3014.7,3014.1,0.006]
[1633066614137,0.9822651,3014.6,3014.1,0.006]
[1633066614339,0.94783992,3014.3,3014.1,0.006]
[1633066614539,0.9822651,3014.6,3014.1,0.006]
[1633066614540,3.31871,3014.6,3014.1,0.006]
[1633066614737,5.96000884,3014.5,3014.1,0.006]
[1633066614938,4.97806,3014.5,3014.1,0.006]
[1633066615138,3.31871,3014.6,3014.1,0.006]
[1633066615439,0.00403,3014.7,3014.1,1.206]
[1633066615440,1.12617951,3014.7,3014.1,1.206]
[1633066615639,3.5162983,3015.3,3014.2,1.62085597]
[1633066615837,1.294,3014.8,3014.2,1.62685597]
[1633066616037,3.31815,3015.1,3014.3,0.006]
[1633066616239,0.96292246,3014.9,3014.3,0.006]
[1633066616439,0.98173014,3014.8,3014.2,0.006]
[1633066617043,4.47208326,3015.3,3014.5,1.294]
[1633066617044,3.5162983,3015.3,3014.5,1.294]
[1633066617240,3.5162983,3015.3,3014.7,4.996]
[1633066617441,3.5162983,3015.3,3014.8,0.2]
[1633066617639,3.5162983,3015.3,3014.8,0.203]
[1633066617839,3.5162983,3015.3,3014.9,0.003]
[1633066618040,3.5162983,3015.3,3015.0,0.2]
[1633066618440,3.5162983,3015.3,3015.0,0.203]
[1633066618639,0.90406841,3015.2,3015.0,0.203]
[1633066619442,1.294,3015.1,3015.0,0.203]
[1633066619646,2.27951938,3015.1,3015.0,0.003]
[1633066620044,2.27951938,3015.1,3014.3,0.006]
[1633066620243,2.27951938,3015.1,3014.1,0.2]
[1633066620244,4.97784,3014.7,3014.2,0.006]
[1633066620443,2.483997,3015.1,3014.5,0.74069572]
[1633066620640,0.98148581,3015.0,3014.5,0.94069572]
[1633066620841,0.98148581,3015.0,3014.6,0.003]
[1633066621244,1.84828239,3015.0,3014.6,0.003]
[1633066621444,0.86679658,3015.0,3014.6,0.003]
[1633066621646,3.31798,3015.0,3014.6,0.003]
[1633066622646,2.48,3015.1,3014.6,0.003]
[1633066622849,3.37434818,3015.1,3014.6,0.003]
[1633066623646,2.48,3015.1,3014.6,0.003]
[1633066623847,2.48,3015.1,3014.8,4.97573]
[1633066624047,2.48,3015.1,3014.9,1.2]
[1633066624247,2.48,3015.1,3014.9,1.203]
[1633066624448,2.48,3015.1,3015.0,0.003]
[1633066624649,2.48,3015.1,3015.0,0.203]
[1633066624850,2.48,3015.1,3015.0,1.08071455]
[1633066625047,2.48,3015.1,3015.0,0.203]
[1633066625249,3.5162983,3015.3,3015.0,0.203]
[1633066626052,0.99051581,3015.1,3015.0,0.203]
[1633066627059,3.26586046,3015.1,3015.0,0.003]
[1633066627252,3.27003846,3015.1,3015.0,0.003]
[1633066627451,3.27003846,3015.1,3014.5,0.003]
[1633066627452,4.27003846,3015.1,3014.9,0.003]
[1633066627652,0.9813568,3015.0,3014.4,0.006]
[1633066627850,1.0046998,3014.6,3014.4,0.006]
[1633066628051,1.0046998,3014.6,3014.1,0.006]
[1633066628253,1.294,3014.4,3014.2,0.006]
[1633066628457,4.97865,3014.3,3014.2,0.006]
[1633066628652,4.3231798,3014.6,3014.1,0.006]
[1633066628853,0.98119558,3014.5,3014.1,0.006]
[1633066629051,1.07658469,3014.3,3014.1,0.006]
[1633066629650,6.05484469,3014.3,3014.1,0.006]
[1633066632656,1.294,3014.2,3014.1,0.006]
[1633066632856,2.28067175,3014.2,3014.1,0.006]
[1633066633064,3.28067175,3014.2,3014.1,0.006]
[1633066633254,2.28067175,3014.2,3014.1,0.006]
[1633066633656,0.98667175,3014.2,3014.1,0.006]
[1633066634458,0.004112,3014.2,3014.1,0.006]
[1633066636664,3.31942,3014.3,3014.1,0.006]
[1633066636861,2.48,3014.9,3014.1,0.006]
[1633066637124,0.98127511,3014.8,3014.1,0.006]
[1633066637662,1.19628885,3014.3,3014.1,0.006]
[1633066638462,3.31879,3014.4,3014.1,0.006]
[1633066639465,2.48,3014.9,3014.1,0.006]
[1633066639666,1.12034785,3014.7,3014.1,0.006]
[1633066640467,2.06387771,3014.7,3014.1,0.73295465]
[1633066640665,2.06387771,3014.7,3014.1,0.006]
[1633066640865,2.06387771,3014.7,3014.2,0.006]
[1633066642266,1.12034785,3014.7,3014.2,0.006]
[1633066642465,2.48,3014.9,3014.2,0.006]
[1633066642666,2.48,3014.9,3014.2,0.206]
[1633066643128,2.48,3014.9,3014.3,0.006]
[1633066643268,2.48,3014.9,3014.3,4.98277]
[1633066643668,2.48,3014.9,3014.4,0.006]
[1633066644267,2.48,3014.9,3014.4,4.9767]
[1633066644666,2.48,3014.9,3014.5,0.006]
[1633066645269,2.48,3014.9,3014.3,0.006]
[1633066645869,2.48,3014.9,3014.5,0.7835644]
[1633066646272,2.48,3014.9,3014.6,0.003]
[1633066647570,2.48,3014.9,3014.6,1.003]
[1633066647971,2.48,3014.9,3014.7,0.003]
[1633066648371,2.48,3014.9,3014.6,0.003]
[1633066648570,2.48,3014.9,3014.4,0.006]
[1633066648970,2.48,3014.9,3014.3,0.006]
[1633066649771,2.48,3014.9,3014.6,1.294]
[1633066649971,2.48,3014.9,3014.7,0.2]
[1633066650175,3.5162983,3015.3,3014.8,0.2]
[1633066650372,3.5162983,3015.3,3014.8,0.203]
[1633066650571,3.5162983,3015.3,3014.9,0.003]
[1633066650775,1.75812679,3015.1,3015.0,0.2]
[1633066651172,1.75812679,3015.1,3015.0,0.203]
[1633066651972,3.5162983,3015.3,3015.0,0.203]
[1633066652971,4.24104897,3015.3,3015.0,0.203]
[1633066654372,3.5162983,3015.3,3015.0,5.17878]
[1633066655439,4.36917818,3015.3,3015.1,1.0]
[1633066655636,3.5162983,3015.3,3015.1,1.0]
[1633066655836,3.5162983,3015.3,3015.1,5.97559]
[1633066656038,3.5162983,3015.3,3015.1,9.2923691]
[1633066656638,3.5162983,3015.3,3015.2,0.73802082]
[1633066656841,3.5162983,3015.3,3015.2,0.93802082]
[1633066657440,3.5162983,3015.3,3015.2,0.2]
[1633066658440,3.5162983,3015.3,3015.2,0.99133448]
[1633066665043,3.5162983,3015.3,3015.2,2.28533448]
[1633066665445,3.5162983,3015.3,3015.2,21.80533448]
[1633066665944,3.5162983,3015.3,3015.2,22.80533448]
[1633066666545,3.5162983,3015.3,3015.2,2.494]
[1633066667746,3.5162983,3015.3,3015.2,1.2]
[1633066669351,3.5162983,3015.3,3015.2,2.16605101]
[1633066669748,2.38633962,3015.7,3015.4,3.31615]
[1633066669949,2.38633962,3015.7,3015.6,0.013168]
[1633066670151,2.38633962,3015.7,3015.6,0.213168]
[1633066670551,2.38633962,3015.7,3015.6,24.707018]
[1633066670750,2.38633962,3015.7,3015.6,26.57366889]
[1633066671351,2.38633962,3015.7,3015.6,25.657018]
[1633066672350,2.38633962,3015.7,3015.6,26.60854826]
[1633066672953,2.38633962,3015.7,3015.6,0.79566719]
[1633066673556,2.38633962,3015.7,3015.6,5.76951719]
[1633066673754,2.38728789,3015.7,3015.6,5.76951719]
[1633066676556,0.03746336,3015.6,3015.5,9.9477466]
[1633066676758,0.03746336,3015.6,3015.3,6.83176907]
[1633066676759,3.52587778,3015.6,3015.3,6.83176907]
[1633066677363,1.13053767,3015.6,3015.3,6.83176907]
[1633066677556,0.04149236,3015.6,3015.3,6.83176907]
[1633066677756,0.03746336,3015.6,3015.3,6.83176907]
[1633066678158,3.35463336,3015.6,3015.3,6.83176907]
[1633066679158,0.03746336,3015.6,3015.3,6.83176907]
[1633066679360,0.03746336,3015.6,3015.4,0.2]
[1633066679561,0.03746336,3015.6,3015.4,1.2]
[1633066679757,0.03746336,3015.6,3015.5,4.97432]
[1633066679960,0.03746336,3015.6,3015.5,5.17432]
[1633066680156,0.03746336,3015.6,3015.5,6.17432]
[1633066680556,0.03746336,3015.6,3015.5,1.2]
[1633066680955,0.03746336,3015.6,3015.5,0.2]
[1633066684355,0.03839101,3015.6,3015.5,0.2]
[1633066685356,0.03839101,3015.6,3015.5,1.00002838]
[1633066686358,0.03839101,3015.6,3015.5,0.2]
[1633066691564,0.03839101,3015.6,3015.5,5.17477]
[1633066692367,1.33239101,3015.6,3015.5,0.2]
[1633066692566,6.30820101,3015.6,3015.3,6.83176907]
[1633066692765,0.03839101,3015.6,3015.3,6.83176907]
[1633066693167,0.82485601,3015.6,3015.3,6.83176907]
[1633066693367,1.294,3015.5,3015.3,6.83176907]
[1633066693566,6.83176907,3015.3,3014.7,0.2]
[1633066693766,7.47546304,3015.2,3014.8,0.003]
[1633066693966,0.87881821,3015.1,3014.8,0.003]
[1633066694164,0.87881821,3015.1,3014.4,0.006]
[1633066694365,0.80261619,3014.7,3014.4,0.006]
[1633066694566,3.31845,3014.8,3014.4,0.006]
[1633066694767,2.31817683,3014.7,3014.4,0.006]
[1633066694969,3.31845,3014.8,3014.4,0.006]
[1633066695567,0.78017107,3014.7,3014.4,0.006]
[1633066695766,6.27154,3014.6,3014.4,0.006]
[1633066695966,4.97754,3014.6,3014.4,0.006]
[1633066696171,3.31846,3015.2,3014.6,3.81091395]
[1633066696372,6.83176907,3015.3,3014.9,0.009234]
[1633066696567,6.83176907,3015.3,3015.0,0.2]
[1633066696768,6.83176907,3015.3,3015.0,0.203]
[1633066696968,6.83176907,3015.3,3015.1,4.97504]
[1633066697168,6.83176907,3015.3,3015.2,0.2]
[1633066704975,0.05746336,3015.6,3015.3,6.12725283]
[1633066705178,0.05746336,3015.6,3015.4,5.196]
[1633066705378,0.05746336,3015.6,3015.4,6.196]
[1633066705577,0.05746336,3015.6,3015.4,11.17041]
[1633066705978,0.05746336,3015.6,3015.5,0.80432159]
[1633066706175,0.05746336,3015.6,3015.5,1.00432159]
[1633066708180,0.05746336,3015.6,3015.5,2.29832159]
[1633066708380,0.05746336,3015.6,3015.5,1.00432159]
[1633066709381,0.05746336,3015.6,3015.5,2.29832159]
[1633066711983,0.05746336,3015.6,3015.5,1.62856574]
[1633066712839,0.05746336,3015.6,3015.5,1.00432159]
[1633066715858,0.05839101,3015.6,3015.5,1.00432159]